[Event "Titled Tuesday Blitz April 05 Late 2022"]
[White "Suder, Jakub"]
[Black "Djordjevic, Dejan N"]
[WhiteFideId "1195310"]
[BlackFideId "913316"]
[WhiteElo "2058"]
[BlackElo "2262"]
[Result "1-0"]
[Round "01"]
[TimeControl "180+1"]
[Date "2022.04.06"]
[WhiteClock "0:01:45"]
[BlackClock "0:00:01"]

1. d4 {[%clk 0:02:59]}  Nf6 {[%clk 0:01:41]} 2. c4 {[%clk 0:02:58]}  g6 {[%clk 0:01:40]} 3. Nc3 {[%clk 0:02:59]}  Bg7 {[%clk 0:01:41]} 4. e4 {[%clk 0:02:59]}  d6 {[%clk 0:01:42]} 5. Be2 {[%clk 0:03:00]}  O-O {[%clk 0:01:42]} 6. Nf3 {[%clk 0:03:00]}  Nc6 {[%clk 0:01:43]} 7. O-O {[%clk 0:03:01]}  e5 {[%clk 0:01:43]} 8. d5 {[%clk 0:03:01]}  Ne7 {[%clk 0:01:43]} 9. Ne1 {[%clk 0:03:02]}  Ne8 {[%clk 0:01:44]} 10. f4 {[%clk 0:03:02]}  h6 {[%clk 0:01:43]} 11. Nd3 {[%clk 0:03:01]}  exf4 {[%clk 0:01:35]} 12. Bxf4 {[%clk 0:03:02]}  g5 {[%clk 0:01:32]} 13. Bg3 {[%clk 0:03:02]}  Ng6 {[%clk 0:01:33]} 14. Bg4 {[%clk 0:03:02]}  Qe7 {[%clk 0:01:21]} 15. Bxc8 {[%clk 0:02:56]}  Rxc8 {[%clk 0:01:21]} 16. Qe2 {[%clk 0:02:55]}  Nf6 {[%clk 0:01:06]} 17. e5 {[%clk 0:02:53]}  dxe5 {[%clk 0:01:03]} 18. Ne4 {[%clk 0:02:52]}  Nxe4 {[%clk 0:01:01]} 19. Qxe4 {[%clk 0:02:53]}  Rce8 {[%clk 0:00:57]} 20. Rf5 {[%clk 0:02:52]}  Nf4 {[%clk 0:00:55]} 21. Rd1 {[%clk 0:02:42]}  b6 {[%clk 0:00:30]} 22. h4 {[%clk 0:02:40]}  a5 {[%clk 0:00:28]} 23. hxg5 {[%clk 0:02:40]}  hxg5 {[%clk 0:00:28]} 24. Re1 {[%clk 0:02:31]}  Nxd3 {[%clk 0:00:20]} 25. Qxd3 {[%clk 0:02:32]}  f6 {[%clk 0:00:19]} 26. Qe4 {[%clk 0:02:31]}  Rd8 {[%clk 0:00:19]} 27. Bf2 {[%clk 0:02:31]}  Qb4 {[%clk 0:00:19]} 28. Qc2 {[%clk 0:02:29]}  Rfe8 {[%clk 0:00:19]} 29. Rf3 {[%clk 0:02:30]}  a4 {[%clk 0:00:18]} 30. Rh3 {[%clk 0:02:30]}  b5 {[%clk 0:00:18]} 31. Qg6 {[%clk 0:02:29]}  Re7 {[%clk 0:00:16]} 32. Rf3 {[%clk 0:02:22]}  Rf8 {[%clk 0:00:14]} 33. Rh3 {[%clk 0:02:08]}  Qxc4 {[%clk 0:00:13]} 34. Rd1 {[%clk 0:02:05]}  b4 {[%clk 0:00:10]} 35. d6 {[%clk 0:02:05]}  cxd6 {[%clk 0:00:10]} 36. Rxd6 {[%clk 0:02:04]}  Qc1+ {[%clk 0:00:10]} 37. Kh2 {[%clk 0:02:04]}  Qf4+ {[%clk 0:00:10]} 38. Bg3 {[%clk 0:02:04]}  Qc4 {[%clk 0:00:07]} 39. b3 {[%clk 0:02:03]}  axb3 {[%clk 0:00:07]} 40. axb3 {[%clk 0:02:04]}  Qc5 {[%clk 0:00:07]} 41. Qh7+ {[%clk 0:01:58]}  Kf7 {[%clk 0:00:06]} 42. Qh5+ {[%clk 0:01:59]}  Kg8 {[%clk 0:00:06]} 43. Rd3 {[%clk 0:02:00]}  Qc6 {[%clk 0:00:05]} 44. Rf3 {[%clk 0:02:00]}  Qe6 {[%clk 0:00:05]} 45. Qh7+ {[%clk 0:02:00]}  Kf7 {[%clk 0:00:05]} 46. Rh6 {[%clk 0:01:58]}  Rg8 {[%clk 0:00:04]} 47. Kg1 {[%clk 0:01:57]}  Ke8 {[%clk 0:00:04]} 48. Rg6 {[%clk 0:01:56]}  Kf8 {[%clk 0:00:02]} 49. Bf2 {[%clk 0:01:53]}  e4 {[%clk 0:00:02]} 50. Re3 {[%clk 0:01:49]}  Rd7 {[%clk 0:00:01]} 51. Re1 {[%clk 0:01:49]}  Qf7 {[%clk 0:00:01]} 52. Bc5+ {[%clk 0:01:49]}  Ke8 {[%clk 0:00:01]} 53. Rxe4+ {[%clk 0:01:49]}  Kd8 {[%clk 0:00:01]} 54. Rxg7 {[%clk 0:01:49]}  Rxg7 {[%clk 0:00:01]} 55. Qh8+ {[%clk 0:01:50]}  Kc7 {[%clk 0:00:02]} 56. Qh2+ {[%clk 0:01:50]}  Kc6 {[%clk 0:00:01]} 57. Bf2 {[%clk 0:01:47]}  Qd5 {[%clk 0:00:01]} 58. Re1 {[%clk 0:01:45]} 1-0


[Site "https://www.chess.com"]

[Event "Titled Tuesday Blitz April 05 Late 2022"]
[White "Tanenbaum, Zachary"]
[Black "Miszler, Levente"]
[WhiteFideId "2060850"]
[BlackFideId "763276"]
[WhiteElo "2168"]
[BlackElo "1966"]
[Result "1-0"]
[Round "01"]
[TimeControl "180+1"]
[Date "2022.04.06"]
[WhiteClock "0:02:20"]
[BlackClock "0:01:00"]

1. e4 {[%clk 0:02:58]}  e6 {[%clk 0:02:56]} 2. d4 {[%clk 0:02:59]}  d5 {[%clk 0:02:57]} 3. Nc3 {[%clk 0:03:00]}  Nf6 {[%clk 0:02:56]} 4. Bg5 {[%clk 0:03:00]}  Be7 {[%clk 0:02:53]} 5. e5 {[%clk 0:03:00]}  Nfd7 {[%clk 0:02:53]} 6. h4 {[%clk 0:03:00]}  h6 {[%clk 0:02:46]} 7. Bxe7 {[%clk 0:03:00]}  Qxe7 {[%clk 0:02:47]} 8. Qg4 {[%clk 0:03:00]}  O-O {[%clk 0:02:42]} 9. f4 {[%clk 0:02:56]}  c5 {[%clk 0:02:38]} 10. dxc5 {[%clk 0:02:54]}  Nxc5 {[%clk 0:02:29]} 11. O-O-O {[%clk 0:02:54]}  Nc6 {[%clk 0:02:27]} 12. Nf3 {[%clk 0:02:54]}  a6 {[%clk 0:01:43]} 13. Bd3 {[%clk 0:02:52]}  Nxd3+ {[%clk 0:01:37]} 14. cxd3 {[%clk 0:02:51]}  b5 {[%clk 0:01:36]} 15. Kb1 {[%clk 0:02:51]}  b4 {[%clk 0:01:35]} 16. Ne2 {[%clk 0:02:50]}  f5 {[%clk 0:01:32]} 17. Qg3 {[%clk 0:02:47]}  a5 {[%clk 0:01:26]} 18. Rc1 {[%clk 0:02:47]}  Bb7 {[%clk 0:01:26]} 19. Qf2 {[%clk 0:02:43]}  a4 {[%clk 0:01:25]} 20. Qc5 {[%clk 0:02:42]}  Qxc5 {[%clk 0:01:24]} 21. Rxc5 {[%clk 0:02:43]}  Rfc8 {[%clk 0:01:17]} 22. Rhc1 {[%clk 0:02:37]}  Kf7 {[%clk 0:01:16]} 23. Ned4 {[%clk 0:02:35]}  Nxd4 {[%clk 0:01:15]} 24. Nxd4 {[%clk 0:02:36]}  Ba6 {[%clk 0:01:09]} 25. Rc7+ {[%clk 0:02:35]}  Rxc7 {[%clk 0:01:09]} 26. Rxc7+ {[%clk 0:02:36]}  Kg6 {[%clk 0:01:10]} 27. Nxe6 {[%clk 0:02:34]}  Bxd3+ {[%clk 0:01:10]} 28. Kc1 {[%clk 0:02:34]}  Be4 {[%clk 0:01:09]} 29. Nxg7 {[%clk 0:02:19]}  d4 {[%clk 0:01:03]} 30. h5+ {[%clk 0:02:18]}  Kh7 {[%clk 0:01:01]} 31. Ne8+ {[%clk 0:02:18]}  Kg8 {[%clk 0:00:59]} 32. Nf6+ {[%clk 0:02:19]}  Kf8 {[%clk 0:01:00]} 33. e6 {[%clk 0:02:20]} 1-0


[Site "https://www.chess.com"]

[Event "Titled Tuesday Blitz April 05 Late 2022"]
[White "Vidonyak, Roman"]
[Black "Demchenko, Anton"]
[WhiteFideId "14100622"]
[BlackFideId "4160258"]
[WhiteElo "2504"]
[BlackElo "2539"]
[Result "0-1"]
[Round "01"]
[TimeControl "180+1"]
[Date "2022.04.05"]
[WhiteClock "0:02:10"]
[BlackClock "0:02:21"]

1. d4 {[%clk 0:02:57]}  Nf6 {[%clk 0:02:59]} 2. c4 {[%clk 0:02:57]}  d6 {[%clk 0:03:00]} 3. Nc3 {[%clk 0:02:56]}  e5 {[%clk 0:03:00]} 4. dxe5 {[%clk 0:02:56]}  dxe5 {[%clk 0:03:00]} 5. Qxd8+ {[%clk 0:02:56]}  Kxd8 {[%clk 0:03:01]} 6. Nf3 {[%clk 0:02:56]}  Nc6 {[%clk 0:03:01]} 7. Bg5 {[%clk 0:02:54]}  Be6 {[%clk 0:03:02]} 8. O-O-O+ {[%clk 0:02:55]}  Kc8 {[%clk 0:03:02]} 9. Nd5 {[%clk 0:02:50]}  Nd7 {[%clk 0:03:01]} 10. e4 {[%clk 0:02:48]}  f6 {[%clk 0:03:01]} 11. Be3 {[%clk 0:02:48]}  Bc5 {[%clk 0:02:57]} 12. Be2 {[%clk 0:02:39]}  Bxe3+ {[%clk 0:02:51]} 13. fxe3 {[%clk 0:02:39]}  Nc5 {[%clk 0:02:50]} 14. Nd2 {[%clk 0:02:32]}  a5 {[%clk 0:02:47]} 15. b3 {[%clk 0:02:29]}  Nb4 {[%clk 0:02:45]} 16. Kb2 {[%clk 0:02:26]}  Nbd3+ {[%clk 0:02:44]} 17. Bxd3 {[%clk 0:02:25]}  Nxd3+ {[%clk 0:02:45]} 18. Kc3 {[%clk 0:02:26]}  Nf2 {[%clk 0:02:45]} 19. Rhf1 {[%clk 0:02:26]}  Nxd1+ {[%clk 0:02:45]} 20. Rxd1 {[%clk 0:02:27]}  b6 {[%clk 0:02:35]} 21. Nf3 {[%clk 0:02:26]}  Kb7 {[%clk 0:02:34]} 22. Kc2 {[%clk 0:02:12]}  a4 {[%clk 0:02:27]} 23. b4 {[%clk 0:02:10]}  c6 {[%clk 0:02:21]} 0-1


[Site "https://www.chess.com"]

[Event "Titled Tuesday Blitz April 05 Late 2022"]
[White "Ward, Ieuan C"]
[Black "Potapova, Margarita"]
[WhiteFideId "406627"]
[BlackFideId "14126869"]
[WhiteElo "2293"]
[BlackElo "2216"]
[Result "1-0"]
[Round "01"]
[TimeControl "180+1"]
[Date "2022.04.06"]
[WhiteClock "0:00:19"]
[BlackClock "0:00:03"]

1. d4 {[%clk 0:02:59]}  Nf6 {[%clk 0:02:59]} 2. c4 {[%clk 0:02:59]}  c5 {[%clk 0:02:51]} 3. d5 {[%clk 0:02:59]}  e6 {[%clk 0:02:51]} 4. Nc3 {[%clk 0:02:58]}  exd5 {[%clk 0:02:51]} 5. cxd5 {[%clk 0:02:58]}  d6 {[%clk 0:02:52]} 6. e4 {[%clk 0:02:57]}  g6 {[%clk 0:02:52]} 7. Nf3 {[%clk 0:02:55]}  Bg7 {[%clk 0:02:53]} 8. h3 {[%clk 0:02:53]}  O-O {[%clk 0:02:53]} 9. Bd3 {[%clk 0:02:54]}  b5 {[%clk 0:02:51]} 10. O-O {[%clk 0:02:45]}  c4 {[%clk 0:02:46]} 11. Bc2 {[%clk 0:02:45]}  b4 {[%clk 0:02:42]} 12. Nb5 {[%clk 0:02:36]}  a6 {[%clk 0:02:10]} 13. Nbd4 {[%clk 0:02:35]}  Re8 {[%clk 0:02:11]} 14. Re1 {[%clk 0:02:34]}  Qc7 {[%clk 0:02:04]} 15. Bf4 {[%clk 0:02:31]}  Nbd7 {[%clk 0:01:59]} 16. Rc1 {[%clk 0:02:27]}  Nc5 {[%clk 0:01:57]} 17. e5 {[%clk 0:02:06]}  Nxd5 {[%clk 0:01:34]} 18. exd6 {[%clk 0:02:05]}  Rxe1+ {[%clk 0:01:35]} 19. Qxe1 {[%clk 0:02:03]}  Qd7 {[%clk 0:01:31]} 20. Bg3 {[%clk 0:01:56]}  Bb7 {[%clk 0:01:29]} 21. Ne5 {[%clk 0:01:36]}  Qxd6 {[%clk 0:01:21]} 22. Nxc4 {[%clk 0:01:33]}  Nf4 {[%clk 0:01:18]} 23. Ne2 {[%clk 0:01:29]}  Nxh3+ {[%clk 0:01:09]} 24. Kh2 {[%clk 0:01:03]}  Qc6 {[%clk 0:01:08]} 25. f3 {[%clk 0:01:00]}  Ng5 {[%clk 0:01:08]} 26. Qxb4 {[%clk 0:00:52]}  Nxf3+ {[%clk 0:01:05]} 27. gxf3 {[%clk 0:00:51]}  Qxf3 {[%clk 0:01:06]} 28. Nf4 {[%clk 0:00:51]}  Bh6 {[%clk 0:00:53]} 29. Qc3 {[%clk 0:00:48]}  Qg4 {[%clk 0:00:32]} 30. Rf1 {[%clk 0:00:42]}  Re8 {[%clk 0:00:27]} 31. Ne5 {[%clk 0:00:39]}  Qc8 {[%clk 0:00:14]} 32. Nxf7 {[%clk 0:00:27]}  Kxf7 {[%clk 0:00:07]} 33. Nh5+ {[%clk 0:00:21]}  Ke6 {[%clk 0:00:03]} 34. Qe5+ {[%clk 0:00:19]}  Kd7 {[%clk 0:00:03]} 35. Qd6# {[%clk 0:00:19]} 1-0


[Site "https://www.chess.com"]

[Event "Titled Tuesday Blitz April 05 Late 2022"]
[White "Winkels, Marcel"]
[Black "Iskusnyh, Sergei"]
[WhiteFideId "1003887"]
[BlackFideId "4120027"]
[WhiteElo "1900"]
[BlackElo "2492"]
[Result "0-1"]
[Round "01"]
[TimeControl "180+1"]
[Date "2022.04.06"]
[WhiteClock "0:01:15"]
[BlackClock "0:01:55"]

1. e4 {[%clk 0:03:00]}  e6 {[%clk 0:02:59]} 2. d3 {[%clk 0:02:58]}  c5 {[%clk 0:02:58]} 3. f4 {[%clk 0:02:58]}  Nc6 {[%clk 0:02:56]} 4. g3 {[%clk 0:02:57]}  d6 {[%clk 0:02:44]} 5. Bg2 {[%clk 0:02:57]}  g6 {[%clk 0:02:44]} 6. Nf3 {[%clk 0:02:57]}  Bg7 {[%clk 0:02:44]} 7. O-O {[%clk 0:02:57]}  Nge7 {[%clk 0:02:44]} 8. Nc3 {[%clk 0:02:51]}  O-O {[%clk 0:02:41]} 9. Be3 {[%clk 0:02:52]}  b6 {[%clk 0:02:41]} 10. d4 {[%clk 0:02:43]}  d5 {[%clk 0:02:39]} 11. dxc5 {[%clk 0:02:32]}  d4 {[%clk 0:02:37]} 12. cxb6 {[%clk 0:02:19]}  dxe3 {[%clk 0:02:29]} 13. Qe2 {[%clk 0:02:19]}  Qxb6 {[%clk 0:02:27]} 14. e5 {[%clk 0:02:13]}  Ba6 {[%clk 0:02:26]} 15. Qe1 {[%clk 0:02:07]}  Bxf1 {[%clk 0:02:21]} 16. Qxf1 {[%clk 0:02:05]}  e2+ {[%clk 0:02:18]} 17. Qf2 {[%clk 0:02:05]}  Qxb2 {[%clk 0:02:17]} 18. Rb1 {[%clk 0:01:29]}  Qxc3 {[%clk 0:02:13]} 19. Qxe2 {[%clk 0:01:29]}  Nd4 {[%clk 0:02:08]} 20. Nxd4 {[%clk 0:01:21]}  Qxd4+ {[%clk 0:02:08]} 21. Kh1 {[%clk 0:01:22]}  Rab8 {[%clk 0:02:03]} 22. Rd1 {[%clk 0:01:21]}  Qc5 {[%clk 0:01:57]} 23. h4 {[%clk 0:01:17]}  Nf5 {[%clk 0:01:56]} 24. Kh2 {[%clk 0:01:15]}  Rfd8 {[%clk 0:01:55]} 0-1


[Site "https://www.chess.com"]

[Event "Titled Tuesday Blitz April 05 Late 2022"]
[White "Xiong, Jeffery"]
[Black "Mkrtchyan, Mariam"]
[WhiteFideId "2047640"]
[BlackFideId "13310828"]
[WhiteElo "2727"]
[BlackElo "1984"]
[Result "1-0"]
[Round "01"]
[TimeControl "180+1"]
[Date "2022.04.05"]
[WhiteClock "0:00:32"]
[BlackClock "0:00:02"]

1. e4 {[%clk 0:02:57]}  c6 {[%clk 0:02:53]} 2. Nf3 {[%clk 0:02:55]}  d5 {[%clk 0:02:53]} 3. d3 {[%clk 0:02:56]}  dxe4 {[%clk 0:02:21]} 4. dxe4 {[%clk 0:02:57]}  Qxd1+ {[%clk 0:02:21]} 5. Kxd1 {[%clk 0:02:57]}  Nf6 {[%clk 0:02:17]} 6. Nfd2 {[%clk 0:02:58]}  Ng4 {[%clk 0:02:12]} 7. Ke1 {[%clk 0:02:56]}  e5 {[%clk 0:02:08]} 8. h3 {[%clk 0:02:55]}  Nf6 {[%clk 0:02:05]} 9. Bd3 {[%clk 0:02:54]}  Be6 {[%clk 0:02:01]} 10. Nf3 {[%clk 0:02:53]}  Nbd7 {[%clk 0:01:56]} 11. Ng5 {[%clk 0:02:52]}  Nc5 {[%clk 0:01:52]} 12. Nxe6 {[%clk 0:02:52]}  Nxe6 {[%clk 0:01:45]} 13. Nd2 {[%clk 0:02:29]}  Bd6 {[%clk 0:01:43]} 14. c3 {[%clk 0:02:22]}  Nf4 {[%clk 0:01:38]} 15. Bf1 {[%clk 0:02:22]}  O-O-O {[%clk 0:01:33]} 16. g3 {[%clk 0:02:22]}  Ne6 {[%clk 0:01:28]} 17. Bd3 {[%clk 0:02:22]}  Bc7 {[%clk 0:01:21]} 18. Ke2 {[%clk 0:02:21]}  h5 {[%clk 0:01:17]} 19. Bc4 {[%clk 0:02:05]}  h4 {[%clk 0:01:12]} 20. Bxe6+ {[%clk 0:01:54]}  fxe6 {[%clk 0:01:12]} 21. g4 {[%clk 0:01:55]}  Rd7 {[%clk 0:01:08]} 22. f3 {[%clk 0:01:55]}  Nh7 {[%clk 0:00:55]} 23. Nb3 {[%clk 0:01:54]}  b6 {[%clk 0:00:54]} 24. Be3 {[%clk 0:01:52]}  Rhd8 {[%clk 0:00:51]} 25. Bf2 {[%clk 0:01:52]}  g5 {[%clk 0:00:46]} 26. Be3 {[%clk 0:01:52]}  Bd6 {[%clk 0:00:39]} 27. a4 {[%clk 0:01:52]}  Be7 {[%clk 0:00:32]} 28. a5 {[%clk 0:01:53]}  Kb7 {[%clk 0:00:33]} 29. axb6 {[%clk 0:01:51]}  axb6 {[%clk 0:00:33]} 30. Ra4 {[%clk 0:01:51]}  c5 {[%clk 0:00:25]} 31. Rha1 {[%clk 0:01:52]}  Kc6 {[%clk 0:00:24]} 32. Nd2 {[%clk 0:01:52]}  Nf8 {[%clk 0:00:20]} 33. Nc4 {[%clk 0:01:39]}  Ng6 {[%clk 0:00:19]} 34. b4 {[%clk 0:01:27]}  cxb4 {[%clk 0:00:17]} 35. cxb4 {[%clk 0:01:28]}  Rb7 {[%clk 0:00:15]} 36. Rc1 {[%clk 0:01:00]}  Kb5 {[%clk 0:00:13]} 37. Nxb6 {[%clk 0:01:01]}  Rxb6 {[%clk 0:00:12]} 38. Ra5+ {[%clk 0:01:00]}  Kxb4 {[%clk 0:00:09]} 39. Bxb6 {[%clk 0:01:01]}  Nf4+ {[%clk 0:00:08]} 40. Kf1 {[%clk 0:01:02]}  Rd2 {[%clk 0:00:06]} 41. Rb1+ {[%clk 0:01:02]}  Kc4 {[%clk 0:00:06]} 42. Ra4+ {[%clk 0:01:02]}  Kd3 {[%clk 0:00:05]} 43. Rb3+ {[%clk 0:00:44]}  Kc2 {[%clk 0:00:05]} 44. Ra2+ {[%clk 0:00:45]}  Kxb3 {[%clk 0:00:04]} 45. Rxd2 {[%clk 0:00:46]}  Kc4 {[%clk 0:00:04]} 46. Rd7 {[%clk 0:00:45]}  Bb4 {[%clk 0:00:03]} 47. Be3 {[%clk 0:00:36]}  Nxh3 {[%clk 0:00:03]} 48. Rg7 {[%clk 0:00:37]}  Bc5 {[%clk 0:00:02]} 49. Bxg5 {[%clk 0:00:36]}  Bd4 {[%clk 0:00:01]} 50. Kg2 {[%clk 0:00:32]}  Nf4+ {[%clk 0:00:02]} 51. Bxf4 {[%clk 0:00:32]}  exf4 {[%clk 0:00:02]} 52. Rg6 {[%clk 0:00:31]}  e5 {[%clk 0:00:02]} 53. Rh6 {[%clk 0:00:32]} 1-0


[Site "https://www.chess.com"]

[Event "Titled Tuesday Blitz April 05 Late 2022"]
[White "Yurtseven, Melih"]
[Black "Kollars, Dmitrij"]
[WhiteFideId "6312160"]
[BlackFideId "12909572"]
[WhiteElo "2160"]
[BlackElo "2584"]
[Result "1/2-1/2"]
[Round "01"]
[TimeControl "180+1"]
[Date "2022.04.05"]
[WhiteClock "0:00:06"]
[BlackClock "0:00:19"]

1. Nf3 {[%clk 0:02:59]}  Nf6 {[%clk 0:02:55]} 2. g3 {[%clk 0:02:59]}  g6 {[%clk 0:02:55]} 3. Bg2 {[%clk 0:03:00]}  Bg7 {[%clk 0:02:56]} 4. O-O {[%clk 0:03:01]}  O-O {[%clk 0:02:57]} 5. c4 {[%clk 0:03:00]}  Nc6 {[%clk 0:02:57]} 6. Nc3 {[%clk 0:02:59]}  d5 {[%clk 0:02:58]} 7. cxd5 {[%clk 0:02:45]}  Nxd5 {[%clk 0:02:58]} 8. d4 {[%clk 0:02:43]}  e5 {[%clk 0:02:57]} 9. Nxd5 {[%clk 0:02:21]}  e4 {[%clk 0:02:57]} 10. Nd2 {[%clk 0:01:44]}  Qxd5 {[%clk 0:02:56]} 11. Nxe4 {[%clk 0:01:44]}  Qxd4 {[%clk 0:02:56]} 12. Be3 {[%clk 0:01:37]}  Qxb2 {[%clk 0:02:51]} 13. Rb1 {[%clk 0:01:28]}  Qxa2 {[%clk 0:02:51]} 14. Nc5 {[%clk 0:01:25]}  Rd8 {[%clk 0:02:51]} 15. Qe1 {[%clk 0:01:21]}  Nd4 {[%clk 0:02:47]} 16. Bxd4 {[%clk 0:01:14]}  Bxd4 {[%clk 0:02:48]} 17. Nxb7 {[%clk 0:01:14]}  Bxb7 {[%clk 0:02:46]} 18. Rxb7 {[%clk 0:01:14]}  Bb6 {[%clk 0:02:43]} 19. Bf3 {[%clk 0:01:03]}  a5 {[%clk 0:02:40]} 20. Qc3 {[%clk 0:01:01]}  a4 {[%clk 0:02:30]} 21. Ra1 {[%clk 0:00:50]}  Qb3 {[%clk 0:02:30]} 22. Rxc7 {[%clk 0:00:26]}  Qxc3 {[%clk 0:01:38]} 23. Rxc3 {[%clk 0:00:25]}  Bd4 {[%clk 0:01:39]} 24. Bxa8 {[%clk 0:00:26]}  Rxa8 {[%clk 0:01:36]} 25. Rca3 {[%clk 0:00:23]}  Bxa1 {[%clk 0:01:37]} 26. Rxa1 {[%clk 0:00:24]}  Kg7 {[%clk 0:01:29]} 27. Kg2 {[%clk 0:00:20]}  Kf6 {[%clk 0:01:29]} 28. Kf3 {[%clk 0:00:20]}  Kf5 {[%clk 0:01:27]} 29. Ke3 {[%clk 0:00:20]}  Kg4 {[%clk 0:01:27]} 30. h4 {[%clk 0:00:19]}  Kh3 {[%clk 0:01:25]} 31. Ra3 {[%clk 0:00:19]}  Kg2 {[%clk 0:01:25]} 32. g4 {[%clk 0:00:19]}  Kh3 {[%clk 0:01:23]} 33. Kf4+ {[%clk 0:00:18]}  Kxh4 {[%clk 0:01:23]} 34. Ra1 {[%clk 0:00:18]}  Kh3 {[%clk 0:01:22]} 35. Ra3+ {[%clk 0:00:12]}  Kg2 {[%clk 0:01:22]} 36. f3 {[%clk 0:00:12]}  h6 {[%clk 0:01:19]} 37. e4 {[%clk 0:00:12]}  Kf2 {[%clk 0:01:16]} 38. Ke5 {[%clk 0:00:12]}  Ke2 {[%clk 0:01:06]} 39. Kf6 {[%clk 0:00:12]}  Ra7 {[%clk 0:01:04]} 40. e5 {[%clk 0:00:07]}  Kd2 {[%clk 0:00:54]} 41. e6 {[%clk 0:00:07]}  fxe6 {[%clk 0:00:55]} 42. Kxg6 {[%clk 0:00:08]}  Kc2 {[%clk 0:00:51]} 43. Kxh6 {[%clk 0:00:08]}  Kb2 {[%clk 0:00:51]} 44. Re3 {[%clk 0:00:09]}  Ra6 {[%clk 0:00:31]} 45. g5 {[%clk 0:00:08]}  a3 {[%clk 0:00:32]} 46. g6 {[%clk 0:00:07]}  a2 {[%clk 0:00:32]} 47. Re2+ {[%clk 0:00:06]}  Kc3 {[%clk 0:00:32]} 48. Re1 {[%clk 0:00:02]}  a1=Q {[%clk 0:00:31]} 49. Rxa1 {[%clk 0:00:03]}  Rxa1 {[%clk 0:00:31]} 50. g7 {[%clk 0:00:04]}  Kd4 {[%clk 0:00:13]} 51. g8=Q {[%clk 0:00:02]}  Rh1+ {[%clk 0:00:14]} 52. Kg7 {[%clk 0:00:03]}  Rg1+ {[%clk 0:00:14]} 53. Kf7 {[%clk 0:00:04]}  Rxg8 {[%clk 0:00:15]} 54. Kxg8 {[%clk 0:00:05]}  Ke3 {[%clk 0:00:15]} 55. Kf7 {[%clk 0:00:05]}  e5 {[%clk 0:00:16]} 56. Kf6 {[%clk 0:00:06]}  Kf4 {[%clk 0:00:17]} 57. Ke6 {[%clk 0:00:06]}  e4 {[%clk 0:00:18]} 58. fxe4 {[%clk 0:00:06]}  Kxe4 {[%clk 0:00:19]} 1/2-1/2


[Site "https://www.chess.com"]

[Event "Titled Tuesday Blitz April 05 Late 2022"]
[White "Zherebtsova, Alexandra"]
[Black "Gelman, Alexander"]
[WhiteFideId "24129518"]
[BlackFideId "4118316"]
[WhiteElo "2025"]
[BlackElo "2375"]
[Result "1-0"]
[Round "01"]
[TimeControl "180+1"]
[Date "2022.04.06"]
[WhiteClock "0:00:11"]
[BlackClock "0:00:51"]

1. d4 {[%clk 0:02:58]}  Nf6 {[%clk 0:02:59]} 2. Nf3 {[%clk 0:02:58]}  c5 {[%clk 0:02:59]} 3. d5 {[%clk 0:02:58]}  e6 {[%clk 0:02:59]} 4. Nc3 {[%clk 0:02:57]}  b5 {[%clk 0:02:59]} 5. e4 {[%clk 0:02:47]}  b4 {[%clk 0:02:55]} 6. Nb5 {[%clk 0:02:43]}  a6 {[%clk 0:02:49]} 7. dxe6 {[%clk 0:02:22]}  axb5 {[%clk 0:02:46]} 8. exf7+ {[%clk 0:02:22]}  Kxf7 {[%clk 0:02:46]} 9. e5 {[%clk 0:02:05]}  Bb7 {[%clk 0:02:21]} 10. exf6 {[%clk 0:01:41]}  gxf6 {[%clk 0:02:15]} 11. Bxb5 {[%clk 0:01:23]}  Rg8 {[%clk 0:02:10]} 12. Nh4 {[%clk 0:01:14]}  Qe7+ {[%clk 0:01:56]} 13. Be3 {[%clk 0:01:07]}  Qe5 {[%clk 0:01:53]} 14. Bxd7 {[%clk 0:00:51]}  Bh6 {[%clk 0:01:37]} 15. Bb5 {[%clk 0:00:37]}  Bxe3 {[%clk 0:01:34]} 16. Bc4+ {[%clk 0:00:36]}  Kg7 {[%clk 0:01:23]} 17. fxe3 {[%clk 0:00:26]}  Qxe3+ {[%clk 0:01:13]} 18. Qe2 {[%clk 0:00:17]}  Re8 {[%clk 0:01:02]} 19. Nf5+ {[%clk 0:00:13]}  Kh8 {[%clk 0:01:00]} 20. Nxe3 {[%clk 0:00:14]}  Nc6 {[%clk 0:00:58]} 21. O-O {[%clk 0:00:14]}  Nd4 {[%clk 0:00:59]} 22. Qf2 {[%clk 0:00:14]}  Re4 {[%clk 0:00:58]} 23. Rae1 {[%clk 0:00:14]}  f5 {[%clk 0:00:57]} 24. Qg3 {[%clk 0:00:13]}  Ra6 {[%clk 0:00:54]} 25. Nxf5 {[%clk 0:00:12]}  Rg6 {[%clk 0:00:53]} 26. Qb8+ {[%clk 0:00:11]}  Rg8 {[%clk 0:00:52]} 27. Qxb7 {[%clk 0:00:11]}  Reg4 {[%clk 0:00:51]} 28. Ng3 {[%clk 0:00:11]} 1-0


[Site "https://www.chess.com"]

[Event "Titled Tuesday Blitz April 05 Late 2022"]
[White "Abdyzhapar, Asylbek"]
[Black "Ozates, Tuna"]
[WhiteFideId "13800337"]
[BlackFideId "6354521"]
[WhiteElo "2331"]
[BlackElo "1887"]
[Result "1-0"]
[Round "02"]
[TimeControl "180+1"]
[Date "2022.04.05"]
[WhiteClock "0:01:28"]
[BlackClock "0:00:12"]

1. d4 {[%clk 0:03:00]}  Nf6 {[%clk 0:03:00]} 2. Bg5 {[%clk 0:03:00]}  Ne4 {[%clk 0:02:58]} 3. Bf4 {[%clk 0:03:00]}  d6 {[%clk 0:02:59]} 4. f3 {[%clk 0:02:59]}  Nf6 {[%clk 0:02:59]} 5. e4 {[%clk 0:02:59]}  e5 {[%clk 0:03:00]} 6. dxe5 {[%clk 0:02:54]}  Nh5 {[%clk 0:03:00]} 7. Be3 {[%clk 0:02:53]}  dxe5 {[%clk 0:02:59]} 8. Qxd8+ {[%clk 0:02:52]}  Kxd8 {[%clk 0:03:00]} 9. Bc4 {[%clk 0:02:45]}  Ke8 {[%clk 0:02:55]} 10. Ne2 {[%clk 0:02:39]}  Bd6 {[%clk 0:02:55]} 11. Nbc3 {[%clk 0:02:37]}  a6 {[%clk 0:02:54]} 12. O-O-O {[%clk 0:02:35]}  Nd7 {[%clk 0:02:48]} 13. a4 {[%clk 0:02:32]}  Nhf6 {[%clk 0:02:43]} 14. g4 {[%clk 0:02:31]}  h6 {[%clk 0:02:43]} 15. h4 {[%clk 0:02:30]}  Nc5 {[%clk 0:01:58]} 16. Ng3 {[%clk 0:02:24]}  Be6 {[%clk 0:01:52]} 17. Be2 {[%clk 0:02:23]}  g6 {[%clk 0:01:45]} 18. g5 {[%clk 0:02:15]}  hxg5 {[%clk 0:01:38]} 19. hxg5 {[%clk 0:02:14]}  Rxh1 {[%clk 0:01:38]} 20. Rxh1 {[%clk 0:02:14]}  Ng8 {[%clk 0:01:34]} 21. a5 {[%clk 0:02:08]}  Kf8 {[%clk 0:01:26]} 22. Rh7 {[%clk 0:02:05]}  c6 {[%clk 0:01:17]} 23. Nf1 {[%clk 0:01:52]}  Bd7 {[%clk 0:01:16]} 24. Nd2 {[%clk 0:01:47]}  Ne6 {[%clk 0:01:12]} 25. Nc4 {[%clk 0:01:47]}  Bc7 {[%clk 0:01:12]} 26. Na4 {[%clk 0:01:45]}  Re8 {[%clk 0:01:06]} 27. Nc5 {[%clk 0:01:43]}  Nxc5 {[%clk 0:00:12]} 28. Bxc5+ {[%clk 0:01:42]}  Re7 {[%clk 0:00:12]} 29. Rh8 {[%clk 0:01:35]}  Bd8 {[%clk 0:00:12]} 30. Nxe5 {[%clk 0:01:32]}  Kg7 {[%clk 0:00:10]} 31. Rxg8+ {[%clk 0:01:32]}  Kxg8 {[%clk 0:00:11]} 32. Bxe7 {[%clk 0:01:31]}  Bxe7 {[%clk 0:00:11]} 33. Nxd7 {[%clk 0:01:32]}  Bxg5+ {[%clk 0:00:12]} 34. Kd1 {[%clk 0:01:32]}  Bd8 {[%clk 0:00:12]} 35. b4 {[%clk 0:01:31]}  Kg7 {[%clk 0:00:11]} 36. Nc5 {[%clk 0:01:31]}  f5 {[%clk 0:00:11]} 37. Nxb7 {[%clk 0:01:31]}  Be7 {[%clk 0:00:11]} 38. c3 {[%clk 0:01:29]}  fxe4 {[%clk 0:00:11]} 39. fxe4 {[%clk 0:01:29]}  Kf6 {[%clk 0:00:12]} 40. Bxa6 {[%clk 0:01:28]}  Ke5 {[%clk 0:00:12]} 41. Bd3 {[%clk 0:01:28]} 1-0


[Site "https://www.chess.com"]